fUSD/lending_fUSD_20250110
["ID","MTS","AMOUNT","RATE_DAILY","PERIOD"]
[348384776,1736493942508,500.0,8.8e-05,3]
[348384781,1736494004578,1192.23,8.219e-05,2]
[348384794,1736494190426,250.0,8.873e-05,2]
[348384804,1736494232153,-300.0,8.909e-05,2]
[348384805,1736494232163,-6160.95647609,8.91e-05,2]
[348384806,1736494232174,-4784.78,8.91e-05,2]
[348384807,1736494232186,-2567.24731932,8.91e-05,2]
[348384808,1736494232198,-6104.89003891,8.91e-05,2]
[348384809,1736494232209,-4525.60616568,8.91e-05,2]
[348384810,1736494232222,-1288.24,8.91e-05,2]
[348384811,1736494232232,-2314.681,8.988e-05,2]
[348384812,1736494232241,-562.35,8.994e-05,2]
[348384813,1736494232251,-150.0,9e-05,2]
[348384814,1736494232262,-150.0,9e-05,2]
[348384815,1736494232271,-150.0,9e-05,2]
[348384816,1736494232282,-186.98192032,9e-05,2]
[348384817,1736494232292,-150.0,9e-05,2]
[348384818,1736494232302,-150.0,9e-05,2]
[348384819,1736494232311,-1185.65946746,9e-05,2]
[348384820,1736494232320,-279.66,9.028e-05,2]
[348384821,1736494232330,-8734.43,9.088e-05,2]
[348384822,1736494232340,-1140.66,9.107e-05,2]
[348384823,1736494232349,-1000.0,9.141e-05,2]
[348384824,1736494232359,-150.0,9.188e-05,2]
[348384825,1736494232368,-503.01,9.189e-05,2]
[348384826,1736494232378,-183.69,9.219e-05,2]
[348384827,1736494232387,-156.075,9.5e-05,2]
[348384828,1736494232397,-397.0,9.703e-05,2]
[348384829,1736494232406,-259.36351092,9.8e-05,2]
[348384830,1736494232419,-160.63648908,9.8e-05,2]
[348384831,1736494232428,-714.58629175,9.85e-05,2]
[348384832,1736494232447,-21.34890825,9.85e-05,2]
[348384833,1736494232456,-650.74108975,9.896e-05,2]
[348384834,1736494232514,-2284.87121025,9.896e-05,2]
[348384835,1736494232524,-2036.4353,9.896e-05,2]
[348384836,1736494232535,-292.6567,9.897e-05,2]
[348384837,1736494232544,-1485.65702491,9.9e-05,2]
[348384846,1736494237893,-1068.58684361,9.9e-05,2]
[348384847,1736494237904,-555.60485291,9.9e-05,2]
[348384848,1736494238034,-235.01947857,9.9e-05,2]
[348384849,1736494238045,-1816.5517,9.9e-05,2]
[348384850,1736494238054,-717.4464,9.9e-05,2]
[348384851,1736494238063,-29216.50610454,9.971e-05,2]
[348384852,1736494238072,-160.03677752,9.973e-05,2]
[348384853,1736494238082,-15623.53953937,9.978e-05,2]
[348384854,1736494238093,-1081.92,9.978e-05,2]
[348384855,1736494238108,-12511.04656517,9.978e-05,2]
[348384856,1736494238118,-29216.50610454,9.984e-05,2]
[348384857,1736494238128,-1660.2192968,9.987e-05,2]
[348384858,1736494238139,-7260.45161997,9.987e-05,2]
[348384859,1736494238153,-20295.83518777,9.987e-05,2]
[348384860,1736494238162,-29216.50610454,9.991e-05,2]
[348384861,1736494238173,-1675.543,9.992e-05,2]
[348384862,1736494238182,-162.95838711,9.992e-05,2]
[348384863,1736494238191,-7146.845401,9.992e-05,2]
[348384864,1736494238201,-2663.2043942,9.992e-05,2]
[348384865,1736494238210,-2407.3747726,9.992e-05,2]
[348384866,1736494238224,-398.878847,9.996e-05,2]
[348384867,1736494238234,-448.748094,9.996e-05,2]
[348384868,1736494238243,-2858.63,9.996e-05,2]
[348384869,1736494238254,-862.87,9.996e-05,2]
[348384870,1736494238263,-556.67,9.996e-05,2]
[348384871,1736494238273,-595.53,9.996e-05,2]
[348384872,1736494238282,-500.0,9.996e-05,2]
[348384873,1736494238294,-2525.49,9.996e-05,2]
[348384874,1736494238304,-874.68,9.996e-05,2]
[348384875,1736494238313,-961.38,9.996e-05,2]
[348384876,1736494238322,-467.88691468,9.996e-05,2]
[348384877,1736494238332,-544.01629502,9.996e-05,2]
[348384878,1736494238341,-500.0,9.996e-05,2]
[348384879,1736494238351,-500.0,9.996e-05,2]
[348384880,1736494238360,-530.95,9.996e-05,2]
[348384881,1736494238369,-500.0,9.996e-05,2]
[348384882,1736494238378,-500.0,9.996e-05,2]
[348384883,1736494238387,-615.3,9.996e-05,2]
[348384884,1736494238396,-500.0,9.996e-05,2]
[348384885,1736494238406,-500.0,9.996e-05,2]
[348384886,1736494238415,-500.0,9.996e-05,2]
[348384887,1736494238425,-500.0,9.996e-05,2]
[348384888,1736494238434,-500.0,9.996e-05,2]
[348384889,1736494238442,-500.0,9.996e-05,2]
[348384890,1736494238453,-500.0,9.996e-05,2]
[348384891,1736494238462,-500.0,9.996e-05,2]
[348384893,1736494238471,-185.788336,9.996e-05,2]
[348384895,1736494238481,-500.0,9.996e-05,2]
[348384897,1736494238491,-500.0,9.996e-05,2]
[348384899,1736494238500,-500.0,9.996e-05,2]
[348384901,1736494238509,-500.0,9.996e-05,2]
[348384903,1736494238519,-500.0,9.996e-05,2]
[348384905,1736494238527,-500.0,9.996e-05,2]
[348384907,1736494238540,-500.0,9.996e-05,2]
[348384909,1736494238550,-500.0,9.996e-05,2]
[348384911,1736494238559,-1159.47,9.996e-05,2]
[348384913,1736494238568,-500.0,9.996e-05,2]
[348384915,1736494238577,-500.0,9.996e-05,2]
[348384916,1736494238586,-500.0,9.996e-05,2]
[348384918,1736494238596,-500.0,9.996e-05,2]
[348384921,1736494238605,-1172.78,9.996e-05,2]
[348384923,1736494238615,-553.28,9.996e-05,2]
[348384924,1736494238624,-678.19,9.996e-05,2]
[348384926,1736494238633,-1286.05,9.996e-05,2]
[348384928,1736494238642,-500.0,9.996e-05,2]
[348384930,1736494238652,-500.0,9.996e-05,2]
[348384932,1736494238661,-500.0,9.996e-05,2]
[348384934,1736494238671,-697.71,9.996e-05,2]
[348384936,1736494238680,-1042.67,9.996e-05,2]
[348384938,1736494238689,-539.46,9.996e-05,2]
[348384940,1736494238704,-782.13,9.996e-05,2]
[348384942,1736494238713,-500.0,9.996e-05,2]
[348384944,1736494238723,-500.0,9.996e-05,2]
[348384946,1736494238732,-2085.59,9.996e-05,2]
[348384947,1736494238742,-500.0,9.996e-05,2]
[348384948,1736494238751,-500.0,9.996e-05,2]
[348384949,1736494238763,-500.0,9.996e-05,2]
[348384950,1736494238772,-1360.09,9.996e-05,2]
[348384951,1736494238783,-500.0,9.996e-05,2]
[348384952,1736494238795,-1145.81,9.996e-05,2]
[348384953,1736494238804,-500.0,9.996e-05,2]
[348384954,1736494238815,-500.0,9.996e-05,2]
[348384955,1736494238824,-500.0,9.996e-05,2]
[348384956,1736494238834,-2616.33,9.996e-05,2]
[348384957,1736494238843,-500.0,9.996e-05,2]
[348384958,1736494238852,-500.0,9.996e-05,2]
[348384959,1736494238862,-687.95,9.996e-05,2]
[348384960,1736494238871,-500.0,9.996e-05,2]
[348384961,1736494238880,-500.0,9.996e-05,2]
[348384962,1736494238890,-500.0,9.996e-05,2]
[348384963,1736494238899,-500.0,9.996e-05,2]
[348384964,1736494238909,-1153.96,9.996e-05,2]
[348384965,1736494238919,-755.41,9.996e-05,2]
[348384966,1736494238928,-500.0,9.996e-05,2]
[348384967,1736494238938,-842.34,9.996e-05,2]
[348384968,1736494238949,-524.94,9.996e-05,2]
[348384969,1736494238958,-500.0,9.996e-05,2]
[348384970,1736494238967,-2620.53,9.996e-05,2]
[348384971,1736494238977,-806.01,9.996e-05,2]
[348384972,1736494238986,-607.32,9.996e-05,2]
[348384973,1736494238995,-500.0,9.996e-05,2]
[348384974,1736494239004,-500.0,9.996e-05,2]
[348384975,1736494239013,-500.0,9.996e-05,2]
[348384976,1736494239023,-928.89,9.996e-05,2]
[348384977,1736494239033,-618.0,9.996e-05,2]
[348384978,1736494239045,-898.06,9.996e-05,2]
[348384979,1736494239054,-500.0,9.996e-05,2]
[348384980,1736494239063,-500.0,9.996e-05,2]
[348384981,1736494239073,-500.0,9.996e-05,2]
[348384982,1736494239083,-526.88,9.996e-05,2]
[348384983,1736494239093,-29216.50610454,9.997e-05,2]
[348384984,1736494239103,-500.0,9.997e-05,2]
[348384985,1736494239112,-494.07727682,9.997e-05,2]
[348384986,1736494239123,-168.49089581,9.997e-05,2]
[348384987,1736494239131,-500.0,9.997e-05,2]
[348384988,1736494239142,-500.0,9.997e-05,2]
[348384989,1736494239153,-492.5478254,9.997e-05,2]
[348384990,1736494239163,-500.0,9.997e-05,2]
[348384991,1736494239172,-500.0,9.997e-05,2]
[348384992,1736494239182,-500.0,9.997e-05,2]
[348384993,1736494239193,-500.0,9.997e-05,2]
[348384994,1736494239204,-535.55,9.997e-05,2]
[348384995,1736494239214,-500.0,9.997e-05,2]
[348384996,1736494239227,-822.17,9.997e-05,2]
[348384997,1736494239237,-507.68163865,9.997e-05,2]
[348384998,1736494239246,-500.0,9.997e-05,2]
[348384999,1736494239256,-500.0,9.997e-05,2]
[348385000,1736494239265,-2219.31,9.997e-05,2]
[348385001,1736494239275,-833.38,9.997e-05,2]
[348385002,1736494239286,-713.09,9.997e-05,2]
[348385003,1736494239300,-807.33,9.997e-05,2]
[348385004,1736494239309,-684.54,9.997e-05,2]
[348385005,1736494239318,-1093.4,9.997e-05,2]
[348385006,1736494239328,-807.12,9.997e-05,2]
[348385007,1736494239337,-1336.35,9.997e-05,2]
[348385008,1736494239347,-6609.16,9.997e-05,2]
[348385009,1736494239356,-500.0,9.997e-05,2]
[348385010,1736494239366,-898.91,9.997e-05,2]
[348385011,1736494239375,-733.4,9.997e-05,2]
[348385012,1736494239384,-1791.51,9.997e-05,2]
[348385013,1736494239394,-928.01,9.997e-05,2]
[348385014,1736494239405,-985.68,9.997e-05,2]
[348385015,1736494239414,-865.08,9.997e-05,2]
[348385016,1736494239426,-865.08,9.997e-05,2]
[348385017,1736494239438,-1063.38,9.997e-05,2]
[348385018,1736494239447,-1365.76,9.997e-05,2]
[348385019,1736494239457,-1669.94,9.997e-05,2]
[348385020,1736494239467,-838.6,9.997e-05,2]
[348385021,1736494239480,-2561.97,9.997e-05,2]
[348385022,1736494239489,-1419.87,9.997e-05,2]
[348385023,1736494239499,-997.16,9.997e-05,2]
[348385024,1736494239508,-500.0,9.997e-05,2]
[348385025,1736494239518,-1138.85,9.997e-05,2]
[348385026,1736494239529,-1547.34,9.997e-05,2]
[348385027,1736494239541,-807.81,9.997e-05,2]
[348385028,1736494239550,-2201.2,9.997e-05,2]
[348385029,1736494239560,-2376.8,9.997e-05,2]
[348385030,1736494239570,-1461.69,9.997e-05,2]
[348385031,1736494239579,-3736.84,9.997e-05,2]
[348385032,1736494239588,-1230.38,9.997e-05,2]
[348385033,1736494239597,-733.78,9.997e-05,2]
[348385034,1736494239606,-1941.84,9.997e-05,2]
[348385035,1736494239615,-1318.44,9.997e-05,2]
[348385036,1736494239625,-1782.49,9.997e-05,2]
[348385037,1736494239635,-5772.87,9.997e-05,2]
[348385038,1736494239645,-500.0,9.997e-05,2]
[348385039,1736494239655,-1674.36,9.997e-05,2]
[348385040,1736494239664,-500.0,9.997e-05,2]
[348385041,1736494239673,-3708.51,9.997e-05,2]
[348385042,1736494239682,-1117.64,9.997e-05,2]
[348385043,1736494239691,-767.64,9.997e-05,2]
[348385044,1736494239701,-1346.16,9.997e-05,2]
[348385045,1736494239709,-500.0,9.997e-05,2]
[348385046,1736494239718,-1294.28,9.997e-05,2]
[348385047,1736494239728,-609.28,9.997e-05,2]
[348385048,1736494239737,-1254.83,9.997e-05,2]
[348385049,1736494239746,-500.0,9.997e-05,2]
[348385050,1736494239755,-500.0,9.997e-05,2]
[348385051,1736494239766,-845.12,9.997e-05,2]
[348385052,1736494239776,-759.08,9.997e-05,2]
[348385053,1736494239785,-503.64590921,9.997e-05,2]
[348385054,1736494239795,-2191.81,9.997e-05,2]
[348385056,1736494239804,-500.0,9.997e-05,2]
[348385057,1736494239813,-500.0,9.997e-05,2]
[348385058,1736494239822,-500.0,9.997e-05,2]
[348385059,1736494239832,-500.0,9.998e-05,2]
[348385060,1736494239843,-662.39,9.998e-05,2]
[348385061,1736494239853,-357.14830284,9.998e-05,2]
[348385062,1736494239862,-500.0,9.998e-05,2]
[348385063,1736494239871,-804.93,9.998e-05,2]
[348385064,1736494239881,-614.37,9.998e-05,2]
[348385065,1736494239891,-538.12,9.998e-05,2]
[348385066,1736494239900,-715.03,9.998e-05,2]
[348385067,1736494239911,-500.0,9.998e-05,2]
[348385068,1736494239920,-500.0,9.998e-05,2]
[348385069,1736494239931,-170.81668977,9.998e-05,2]
[348385070,1736494239940,-500.0,9.998e-05,2]
[348385071,1736494239950,-501.48,9.998e-05,2]
[348385072,1736494239959,-644.84,9.998e-05,2]
[348385073,1736494239968,-673.87,9.998e-05,2]
[348385074,1736494239977,-179.20864479,9.998e-05,2]
[348385075,1736494239986,-667.22,9.998e-05,2]
[348385076,1736494239995,-500.0,9.998e-05,2]
[348385077,1736494240004,-500.0,9.998e-05,2]
[348385078,1736494240014,-338.23,9.998e-05,2]
[348385079,1736494240023,-500.0,9.998e-05,2]
[348385080,1736494240032,-500.0,9.998e-05,2]
[348385081,1736494240044,-500.0,9.998e-05,2]
[348385082,1736494240052,-1022.24,9.998e-05,2]
[348385083,1736494240061,-719.6,9.998e-05,2]
[348385084,1736494240072,-500.0,9.998e-05,2]
[348385085,1736494240081,-403.92,9.998e-05,2]
[348385086,1736494240092,-500.0,9.998e-05,2]
[348385087,1736494240102,-691.19,9.998e-05,2]
[348385088,1736494240112,-500.0,9.998e-05,2]
[348385089,1736494240122,-775.8,9.998e-05,2]
[348385090,1736494240131,-500.0,9.998e-05,2]
[348385091,1736494240140,-500.0,9.998e-05,2]
[348385092,1736494240150,-672.17,9.998e-05,2]
[348385093,1736494240159,-606.28,9.998e-05,2]
[348385094,1736494240168,-500.0,9.998e-05,2]
[348385095,1736494240177,-500.0,9.998e-05,2]
[348385096,1736494240186,-755.96,9.998e-05,2]
[348385097,1736494240195,-748.54,9.998e-05,2]
[348385098,1736494240204,-557.58,9.998e-05,2]
[348385099,1736494240215,-500.0,9.998e-05,2]
[348385100,1736494240225,-796.71,9.998e-05,2]
[348385101,1736494240234,-500.0,9.998e-05,2]
[348385102,1736494240243,-698.96,9.998e-05,2]
[348385103,1736494240252,-476.75614896,9.998e-05,2]
[348385104,1736494240262,-779.02,9.998e-05,2]
[348385105,1736494240272,-664.09,9.998e-05,2]
[348385106,1736494240281,-557.18,9.998e-05,2]
[348385107,1736494240292,-747.0,9.998e-05,2]
[348385108,1736494240302,-758.87,9.998e-05,2]
[348385109,1736494240311,-2365.45,9.998e-05,2]
[348385110,1736494240322,-671.57,9.998e-05,2]
[348385111,1736494240333,-500.0,9.998e-05,2]
[348385112,1736494240343,-500.0,9.998e-05,2]
[348385113,1736494240557,-563.26,9.998e-05,2]
[348385114,1736494240567,-598.57,9.998e-05,2]
[348385115,1736494240576,-748.54,9.998e-05,2]
[348385116,1736494240585,-314.89195015,9.998e-05,2]
[348385117,1736494240596,-887.45,9.998e-05,2]
[348385118,1736494240605,-500.0,9.998e-05,2]
[348385119,1736494240615,-544.78,9.998e-05,2]
[348385120,1736494240625,-2979.81,9.998e-05,2]
[348385121,1736494240639,-682.9,9.998e-05,2]
[348385122,1736494240649,-500.0,9.998e-05,2]
[348385123,1736494240659,-501.19921254,9.998e-05,2]
[348385124,1736494240670,-900.52,9.998e-05,2]
[348385125,1736494240681,-2634.34,9.998e-05,2]
[348385126,1736494240691,-1177.65,9.998e-05,2]
[348385127,1736494240704,-500.0,9.998e-05,2]
[348385128,1736494240713,-720.52,9.998e-05,2]
[348385129,1736494240723,-500.0,9.998e-05,2]
[348385130,1736494240733,-2640.07,9.998e-05,2]
[348385131,1736494240743,-888.6,9.998e-05,2]
[348385132,1736494240753,-735.5,9.998e-05,2]
[348385133,1736494240764,-643.88,9.998e-05,2]
[348385134,1736494240773,-971.61,9.998e-05,2]
[348385135,1736494240782,-500.0,9.998e-05,2]
[348385136,1736494240791,-500.0,9.998e-05,2]
[348385137,1736494240800,-934.31,9.998e-05,2]
[348385138,1736494240809,-698.55,9.998e-05,2]
[348385139,1736494240819,-500.0,9.998e-05,2]
[348385140,1736494240829,-1229.55,9.998e-05,2]
[348385141,1736494240839,-473.40722183,9.998e-05,2]
[348385142,1736494240848,-621.51,9.998e-05,2]
[348385143,1736494240857,-758.9,9.998e-05,2]
[348385144,1736494240866,-500.0,9.998e-05,2]
[348385145,1736494240876,-923.98,9.998e-05,2]
[348385146,1736494240886,-868.2,9.998e-05,2]
[348385147,1736494240895,-1271.26,9.998e-05,2]
[348385148,1736494240906,-500.0,9.998e-05,2]
[348385149,1736494240916,-607.34,9.998e-05,2]
[348385150,1736494240926,-671.81,9.998e-05,2]
[348385151,1736494240936,-500.0,9.998e-05,2]
[348385152,1736494240945,-652.44,9.998e-05,2]
[348385153,1736494240955,-503.41055391,9.998e-05,2]
[348385154,1736494240965,-505.53658496,9.998e-05,2]
[348385155,1736494240975,-1000.0,9.998e-05,2]
[348385156,1736494240984,-317.85662113,9.998e-05,2]
[348385157,1736494240995,-500.0,9.998e-05,2]
[348385158,1736494241003,-523.77,9.998e-05,2]
[348385159,1736494241014,-601.96,9.998e-05,2]
[348385160,1736494241023,-500.0,9.998e-05,2]
[348385161,1736494241032,-500.0,9.998e-05,2]
[348385162,1736494241042,-500.0,9.998e-05,2]
[348385163,1736494241051,-500.0,9.998e-05,2]
[348385164,1736494241060,-500.0,9.998e-05,2]
[348385165,1736494241069,-500.0,9.998e-05,2]
[348385166,1736494241079,-503.3677463,9.998e-05,2]
[348385167,1736494241088,-500.0,9.998e-05,2]
[348385168,1736494241097,-500.0,9.999e-05,2]
[348385169,1736494241107,-155.20554145,9.999e-05,2]
[348385170,1736494241116,-500.0,9.999e-05,2]
[348385171,1736494241125,-503.60126264,9.999e-05,2]
[348385172,1736494241135,-500.0,9.999e-05,2]
[348385173,1736494241144,-500.0,9.999e-05,2]
[348385174,1736494241153,-500.0,9.999e-05,2]
[348385175,1736494241162,-503.033464,9.999e-05,2]
[348385176,1736494241171,-500.0,9.999e-05,2]
[348385177,1736494241180,-500.0,9.999e-05,2]
[348385178,1736494241189,-500.0,9.999e-05,2]
[348385179,1736494241200,-500.0,9.999e-05,2]
[348385180,1736494241210,-155.35274499,9.999e-05,2]
[348385181,1736494241224,-500.0,9.999e-05,2]
[348385182,1736494241233,-500.0,9.999e-05,2]
[348385183,1736494241243,-500.0,9.999e-05,2]
[348385184,1736494241253,-500.0,9.999e-05,2]
[348385185,1736494241263,-502.56756165,9.999e-05,2]
[348385186,1736494241275,-500.0,9.999e-05,2]
[348385187,1736494241286,-504.32549633,9.999e-05,2]
[348385188,1736494241297,-500.0,9.999e-05,2]
[348385189,1736494241306,-500.0,9.999e-05,2]
[348385190,1736494241315,-500.0,9.999e-05,2]
[348385191,1736494241324,-500.0,9.999e-05,2]
[348385192,1736494241333,-504.30975864,9.999e-05,2]
[348385193,1736494241342,-500.0,9.999e-05,2]
[348385194,1736494241351,-500.0,9.999e-05,2]
[348385195,1736494241360,-501.91280292,9.999e-05,2]
[348385196,1736494241369,-500.0,9.999e-05,2]
[348385197,1736494241378,-500.0,9.999e-05,2]
[348385198,1736494241387,-500.0,9.999e-05,2]
[348385199,1736494241396,-500.0,9.999e-05,2]
[348385200,1736494241405,-500.0,9.999e-05,2]
[348385201,1736494241414,-500.0,9.999e-05,2]
[348385202,1736494241423,-306.8961115,9.999e-05,2]
[348385203,1736494241433,-500.0,9.999e-05,2]
[348385204,1736494241444,-500.0,9.999e-05,2]
[348385205,1736494241455,-500.0,9.999e-05,2]
[348385206,1736494241466,-500.0,9.999e-05,2]
[348385207,1736494241476,-500.0,9.999e-05,2]
[348385208,1736494241486,-500.0,9.999e-05,2]
[348385209,1736494241496,-500.0,9.999e-05,2]
[348385210,1736494241506,-500.0,9.999e-05,2]
[348385211,1736494241515,-501.32697143,9.999e-05,2]
[348385212,1736494241524,-500.0,9.999e-05,2]
[348385213,1736494241533,-500.0,9.999e-05,2]
[348385214,1736494241545,-500.0,9.999e-05,2]
[348385215,1736494241554,-500.0,9.999e-05,2]
[348385216,1736494241563,-500.0,9.999e-05,2]
[348385217,1736494241573,-500.0,9.999e-05,2]
[348385218,1736494241581,-500.0,9.999e-05,2]
[348385219,1736494241591,-500.0,9.999e-05,2]
[348385220,1736494241599,-500.0,9.999e-05,2]
[348385221,1736494241608,-500.0,9.999e-05,2]
[348385222,1736494241618,-500.0,9.999e-05,2]
[348385223,1736494241627,-500.0,9.999e-05,2]
[348385224,1736494241636,-500.0,9.999e-05,2]
[348385225,1736494241645,-500.0,9.999e-05,2]
[348385226,1736494241654,-500.0,9.999e-05,2]
[348385227,1736494241663,-500.0,9.999e-05,2]
[348385228,1736494241672,-634.58836287,9.999e-05,2]
[348385229,1736494241682,-1096.31,9.999e-05,2]
[348385230,1736494241692,-500.0,9.999e-05,2]
[348385231,1736494241701,-500.0,9.999e-05,2]
[348385232,1736494241711,-500.0,9.999e-05,2]
[348385233,1736494241720,-382.09,9.999e-05,2]
[348385234,1736494241730,-500.0,9.999e-05,2]
[348385235,1736494241741,-607.28,9.999e-05,2]
[348385236,1736494241751,-500.0,9.999e-05,2]
[348385237,1736494241761,-500.0,9.999e-05,2]
[348385238,1736494241771,-500.0,9.999e-05,2]
[348385239,1736494241780,-1617.2,9.999e-05,2]
[348385240,1736494241793,-500.0,9.999e-05,2]
[348385241,1736494241802,-534.7558338,9.999e-05,2]
[348385242,1736494241811,-500.0,9.999e-05,2]
[348385243,1736494241820,-500.0,9.999e-05,2]
[348385244,1736494241829,-500.0,9.999e-05,2]
[348385245,1736494241839,-527.17,9.999e-05,2]
[348385246,1736494241847,-500.0,9.999e-05,2]
[348385247,1736494241857,-500.0,9.999e-05,2]
[348385248,1736494241866,-564.64,9.999e-05,2]
[348385249,1736494241875,-500.0,9.999e-05,2]
[348385250,1736494241885,-500.0,9.999e-05,2]
[348385251,1736494241894,-501.48091697,9.999e-05,2]
[348385252,1736494241903,-500.0,9.999e-05,2]
[348385253,1736494241915,-2284.41,9.999e-05,2]
[348385254,1736494241924,-500.0,9.999e-05,2]
[348385255,1736494241933,-500.0,9.999e-05,2]
[348385256,1736494241942,-273.240862,9.999e-05,2]
[348385257,1736494241951,-500.0,9.999e-05,2]
[348385258,1736494241960,-546.64,9.999e-05,2]
[348385259,1736494241970,-500.0,9.999e-05,2]
[348385260,1736494241979,-500.0,9.999e-05,2]
[348385261,1736494241989,-500.65795346,9.999e-05,2]
[348385262,1736494241999,-500.0,9.999e-05,2]
[348385263,1736494242008,-216.23,9.999e-05,2]
[348385264,1736494242017,-500.0,9.999e-05,2]
[348385265,1736494242026,-639.94682435,9.999e-05,2]
[348385266,1736494242035,-500.0,9.999e-05,2]
[348385267,1736494242047,-500.0,9.999e-05,2]
[348385268,1736494242057,-500.0,9.999e-05,2]
[348385269,1736494242067,-500.0,9.999e-05,2]
[348385270,1736494242077,-1620.49,9.999e-05,2]
[348385271,1736494242087,-500.0,9.999e-05,2]
[348385272,1736494242097,-500.0,9.999e-05,2]
[348385273,1736494242106,-500.0,9.999e-05,2]
[348385274,1736494242116,-500.0,9.999e-05,2]
[348385275,1736494242125,-500.0,9.999e-05,2]
[348385276,1736494242135,-235.40787081,9.999e-05,2]
[348385277,1736494242144,-500.0,9.999e-05,2]
[348385278,1736494242153,-500.0,9.999e-05,2]
[348385279,1736494242163,-500.0,9.999e-05,2]
[348385280,1736494242173,-500.0,9.999e-05,2]
[348385281,1736494242183,-500.0,9.999e-05,2]
[348385282,1736494242193,-946.15,9.999e-05,2]
[348385283,1736494242203,-603.58,9.999e-05,2]
[348385284,1736494242214,-510.47,9.999e-05,2]
[348385285,1736494242224,-2596.01,9.999e-05,2]
[348385286,1736494242233,-500.0,9.999e-05,2]
[348385287,1736494242243,-409.13144183,9.999e-05,2]
[348385288,1736494242252,-500.0,9.999e-05,2]
[348385289,1736494242262,-500.0,9.999e-05,2]
[348385290,1736494242272,-500.0,9.999e-05,2]
[348385291,1736494242281,-500.0,9.999e-05,2]
[348385292,1736494242296,-592.94660106,9.999e-05,2]
[348385293,1736494242306,-990.91,9.999e-05,2]
[348385294,1736494242316,-500.0,9.999e-05,2]
[348385295,1736494242325,-609.23,9.999e-05,2]
[348385296,1736494242335,-500.0,9.999e-05,2]
[348385297,1736494242345,-500.0,9.999e-05,2]
[348385298,1736494242354,-500.0,9.999e-05,2]
[348385299,1736494242363,-537.72,9.999e-05,2]
[348385300,1736494242373,-500.0,9.999e-05,2]
[348385301,1736494242382,-563.23929815,9.999e-05,2]
[348385302,1736494242391,-500.0,9.999e-05,2]
[348385303,1736494242401,-500.0,9.999e-05,2]
[348385304,1736494242410,-500.0,9.999e-05,2]
[348385305,1736494242419,-886.69,9.999e-05,2]
[348385306,1736494242429,-513.7181214,9.999e-05,2]
[348385307,1736494242438,-500.0,9.999e-05,2]
[348385308,1736494242448,-500.0,9.999e-05,2]
[348385309,1736494242458,-1158.61,9.999e-05,2]
[348385310,1736494242467,-482.62071834,9.999e-05,2]
[348385311,1736494242476,-500.0,9.999e-05,2]
[348385312,1736494242486,-500.0,9.999e-05,2]
[348385313,1736494242495,-500.0,9.999e-05,2]
[348385314,1736494242504,-500.0,9.999e-05,2]
[348385315,1736494242514,-495.0,9.999e-05,2]
[348385316,1736494242523,-500.0,9.999e-05,2]
[348385317,1736494242532,-500.0,9.999e-05,2]
[348385318,1736494242541,-500.0,9.999e-05,2]
[348385319,1736494242551,-500.0,9.999e-05,2]
[348385320,1736494242560,-500.0,9.999e-05,2]
[348385321,1736494242570,-500.0,9.999e-05,2]
[348385322,1736494242579,-500.0,9.999e-05,2]
[348385323,1736494242588,-205.59955707,9.999e-05,2]
[348385324,1736494242598,-1006.0,0.0001,2]
[348385325,1736494242607,-3095975.73801185,0.0001,5]
[348385331,1736494242936,-544.38170658,0.0001,5]
[348385360,1736494243215,-1301.5,9.997e-05,2]
[348385361,1736494243225,-46.411588,9.997e-05,2]
[348385362,1736494243237,-453.588412,9.997e-05,2]
[348385363,1736494243247,-1562.911588,0.0001,5]
[348385364,1736494243266,-1191.18833999,0.0001,5]
[348385365,1736494243277,-9741.844,0.0001,5]
[348385366,1736494243288,-1219.61553686,0.0001,5]
[348385367,1736494243307,-275.24162627,0.0001,5]
[348385368,1736494243329,-3985.932737,0.0001,5]
[348385369,1736494243343,-918.7,0.0001,5]